bitfinex/quotes_SOLUSD_20230116
["timestamp","ask_amount","ask_price","bid_price","bid_amount"]
[1673856534530,21.73143,23.99,23.974,20.0]
[1673856534737,21.73143,23.99,23.94,87.76]
[1673856534738,231.71142156,23.986,23.921,103.2646065]
[1673856534947,19.30847255,23.946,23.94,21.77]
[1673856535151,77.23389019,23.955,23.94,21.77]
[1673856535367,77.23389019,23.955,23.922,31.78390646]
[1673856535582,19.34042745,23.954,23.94,21.94]
[1673856535802,19.34042745,23.953,23.93,21.94]
[1673856535995,19.34042745,23.952,23.94,21.74]
[1673856536205,77.23389019,23.959,23.94,21.74]
[1673856536525,96.57440676,23.958,23.94,21.74]
[1673856536749,77.23389019,23.954,23.931,2.02194]
[1673856537055,115.85083528,23.963,23.931,2.02194]
[1673856537056,77.23389019,23.952,23.931,2.02194]
[1673856537282,77.23389019,23.948,23.935,38.17732051]
[1673856537674,19.34051657,23.947,23.935,38.17732051]
[1673856537880,19.34051657,23.947,23.921,16.702802]
[1673856537881,19.34051657,23.946,23.921,16.702802]
[1673856538103,77.23389019,23.949,23.921,16.702802]
[1673856538104,19.34051657,23.945,23.922,2.0227]
[1673856538318,19.34051657,23.944,23.922,1.5227]
[1673856538533,97.23389019,23.943,23.921,16.702802]
[1673856538857,77.23389019,23.936,23.882,70.60339778]
[1673856539176,77.23389019,23.932,23.9,21.94]
[1673856539361,21.94,23.93,23.885,70.30284559]
[1673856539576,19.34051657,23.929,23.89,21.94]
[1673856539794,21.94,23.93,23.9,21.82]
[1673856540003,21.89,23.93,23.89,21.84]
[1673856540214,21.94,23.92,23.89,2.02541]
[1673856540620,118.69585373,23.929,23.89,21.94]
[1673856540621,97.23389019,23.929,23.89,21.94]
[1673856540827,21.86,23.92,23.873,70.91686746]
[1673856541064,21.86,23.92,23.891,33.88824163]
[1673856541466,71.94850945,23.919,23.873,70.49316461]
[1673856541689,1.993,23.918,23.873,70.49316461]
[1673856541898,87.76,23.92,23.875,70.49952463]
[1673856542207,39.38439765,23.919,23.875,70.49952463]
[1673856542416,77.23389019,23.917,23.875,70.49952463]
[1673856542641,41.37739765,23.916,23.868,70.39779355]
[1673856542854,77.23389019,23.913,23.864,70.69163741]
[1673856543065,39.38439765,23.912,23.864,70.69163741]
[1673856543282,77.23389019,23.91,23.864,70.69163741]
[1673856543492,41.37739765,23.909,23.864,70.69163741]
[1673856543686,77.23389019,23.904,23.864,70.69163741]
[1673856543891,41.37739765,23.903,23.863,33.23947808]
[1673856544119,21.37739765,23.902,23.863,33.23947808]
[1673856544325,39.38439765,23.901,23.863,33.23947808]
[1673856544543,19.38439765,23.9,23.863,33.23947808]
[1673856544735,99.22689019,23.899,23.863,33.23947808]
[1673856544950,19.38439765,23.898,23.863,33.23947808]
[1673856545158,20.0,23.897,23.863,8.23947808]
[1673856545376,19.38439765,23.896,23.863,8.23947808]
[1673856545576,19.38439765,23.896,23.83,16.761194]
[1673856545577,77.23389019,23.869,23.83,16.761194]
[1673856545787,39.38439765,23.868,23.831,2.03042]
[1673856546001,22.33,23.85,23.831,2.03042]
[1673856546206,111.89,23.84,23.78,22.39]
[1673856546412,89.32,23.84,23.763,70.74974115]
[1673856546636,2.03042,23.831,23.782,2.03461]
[1673856546848,1.53644484,23.781,23.76,89.55]
[1673856547064,1.993,23.838,23.76,89.55]
[1673856547259,1.993,23.838,23.8,22.28]
[1673856547466,1.993,23.838,23.781,1.53644484]
[1673856547690,18.993,23.838,23.79,1.53644484]
[1673856547906,21.46196354,23.837,23.79,1.53644484]
[1673856548097,22.33,23.8,23.79,1.53644484]
[1673856548308,111.89,23.8,23.777,139.66135844]
[1673856548518,111.5294,23.829,23.777,139.66135844]
[1673856548854,111.5294,23.829,23.778,6.61761676]
[1673856549047,2.03208,23.827,23.78,22.33]
[1673856549253,2.03208,23.827,23.78,176.7540459]
[1673856549464,22.19,23.79,23.78,176.7540459]
[1673856549676,111.67,23.79,23.78,130.49418872]
[1673856549880,111.67,23.79,23.78,15.85411311]
[1673856549881,47.01279164,23.789,23.78,15.85411311]
[1673856550109,36.22841036,23.789,23.78,15.85411311]
[1673856550317,115.6981,23.855,23.78,15.85411311]
[1673856550531,22.33,23.81,23.78,15.85411311]
[1673856550740,22.33,23.81,23.781,41.23969097]
[1673856550959,22.29,23.8,23.78,15.85411311]
[1673856551153,22.33,23.81,23.78,15.85411311]
[1673856551360,22.33,23.8,23.78,15.85411311]
[1673856551902,22.19,23.79,23.78,15.85411311]
[1673856552096,2.03208,23.799,23.78,15.85411311]
[1673856552307,22.29,23.79,23.78,15.85411311]
[1673856552722,2.03208,23.799,23.78,15.85411311]
[1673856553145,22.53,23.79,23.777,53.18229465]
[1673856553567,50.91033238,23.798,23.777,53.18229465]
[1673856553787,2.03208,23.789,23.777,53.18229465]
[1673856554330,34.89616026,23.788,23.777,53.18229465]
[1673856554543,45.34458151,23.788,23.777,53.18229465]
[1673856554857,184.75900225,23.852,23.777,53.18229465]
[1673856555067,41.29,23.874,23.777,53.18229465]
[1673856555068,76.30570803,23.847,23.777,53.18229465]
[1673856555261,2.03208,23.85,23.777,53.18229465]
[1673856555466,30.31628497,23.832,23.777,53.18229465]
[1673856555886,21.46196354,23.831,23.777,53.18229465]
[1673856556097,2.03208,23.83,23.777,53.18229465]
[1673856556530,21.46196354,23.829,23.777,53.18229465]
[1673856556744,65.1519693,23.829,23.777,53.18229465]
[1673856557059,2.03208,23.827,23.777,53.18229465]
[1673856557393,112.6,23.79,23.777,53.18229465]
[1673856557690,20.0,23.789,23.773,61.89380155]
[1673856557882,20.0,23.789,23.738,28.4252]
[1673856557883,40.83357096,23.769,23.738,28.4252]
[1673856558093,201.5123251,23.768,23.738,28.4252]
[1673856558315,181.5123251,23.768,23.738,28.4252]
[1673856558521,183.5444051,23.768,23.767,170.78224203]
[1673856558736,203.5444051,23.768,23.767,123.25224203]
[1673856559062,203.5444051,23.768,23.767,36.45224203]
[1673856559063,203.3348751,23.768,23.767,36.45224203]
[1673856559371,203.3348751,23.768,23.767,13.90224203]
[1673856559589,22.55,23.755,23.738,28.4252]
[1673856559772,185.75038151,23.767,23.738,28.4252]
[1673856559987,59.45359582,23.768,23.738,28.4252]
[1673856559988,2.03208,23.754,23.738,28.4252]
[1673856560194,20.0,23.757,23.738,28.4252]
[1673856560410,112.34,23.75,23.738,28.4252]
[1673856560622,20.0,23.749,23.738,28.4252]
[1673856560823,41.46196354,23.749,23.738,28.4252]
[1673856561039,21.46196354,23.748,23.716,74.4524358]
[1673856561250,2.03208,23.748,23.716,74.4524358]
[1673856561477,2.03208,23.747,23.716,74.4524358]
[1673856561691,2.03208,23.747,23.716,73.4524358]
[1673856561889,86.80420847,23.747,23.716,73.4524358]
[1673856562217,132.23409201,23.746,23.716,73.4524358]
[1673856562621,21.46196354,23.745,23.716,73.4524358]
[1673856562825,20.0,23.744,23.716,73.4524358]
[1673856563037,20.0,23.744,23.716,48.4524358]
[1673856563372,59.53597176,23.763,23.716,48.4524358]
[1673856563562,42.92392708,23.743,23.716,48.4524358]
[1673856563779,21.46196354,23.743,23.716,48.4524358]
[1673856564306,108.4937,23.764,23.716,48.4524358]
[1673856564520,21.46196354,23.763,23.716,48.4524358]
[1673856564710,23.49404354,23.763,23.716,48.4524358]
[1673856564919,2.03208,23.762,23.716,48.4524358]
[1673856565131,42.94263808,23.762,23.716,48.4524358]
[1673856565355,2.03208,23.762,23.716,48.4524358]
[1673856565570,42.92392708,23.761,23.716,55.18022002]
[1673856565763,42.92392708,23.761,23.716,23.4524358]
[1673856565764,56.05813144,23.761,23.716,23.4524358]
[1673856565976,2.03208,23.76,23.716,23.4524358]
[1673856566183,60.17021144,23.76,23.716,23.4524358]
[1673856566393,156.4108741,23.693,23.602,74.55551966]
[1673856566619,156.4108741,23.693,23.416,320.09196554]
[1673856566620,103.5746,23.641,23.559,71.67790395]
[1673856566818,103.5746,23.641,23.471,71.7293783]
[1673856566819,90.12,23.57,23.471,71.7293783]
[1673856567027,103.5746,23.641,23.568,2.03208]
[1673856567028,176.94325444,23.633,23.568,2.03208]
[1673856567256,103.5746,23.641,23.448,71.95681736]
[1673856567257,2.03208,23.568,23.448,71.95681736]
[1673856567441,2.03208,23.515,23.504,71.27452754]
[1673856567660,77.23389019,23.552,23.502,27.393021]
[1673856567866,2.03208,23.514,23.502,27.393021]
[1673856568298,177.45617399,23.513,23.502,27.393021]
[1673856568508,295.46735076,23.496,23.411,71.1437944]
[1673856568719,195.68816528,23.493,23.412,40.29]
[1673856569047,103.0098641,23.496,23.352,113.807]
[1673856569048,190.83167052,23.49,23.41,21.42387584]
[1673856569227,195.35533757,23.487,23.412,13.18803619]
[1673856569440,215.45099703,23.46,23.412,13.18803619]
[1673856569756,191.28573898,23.457,23.413,83.96184805]
[1673856569964,193.31781898,23.457,23.413,41.29]
[1673856570177,200.37374039,23.455,23.413,41.29]
[1673856570385,21.46196354,23.456,23.413,41.29]
[1673856570386,22.59,23.44,23.413,41.29]
[1673856570592,2.03208,23.439,23.413,41.29]
[1673856570818,71.45,23.42,23.413,40.29]
[1673856571029,42.47996442,23.454,23.342,39.79]
[1673856571030,2.03208,23.419,23.342,39.79]
[1673856571437,198.37919961,23.418,23.342,39.79]
[1673856571646,198.37919961,23.418,23.322,50.50467532]
[1673856571647,193.25659495,23.415,23.322,50.50467532]
[1673856571857,201.40604093,23.413,23.323,39.79]
[1673856572195,190.84816504,23.41,23.323,39.79]
[1673856572379,192.31717119,23.407,23.325,39.79]
[1673856572594,192.31717119,23.407,23.3,22.45]
[1673856572595,191.75520737,23.404,23.278,5.4490731]
[1673856572927,198.00940859,23.391,23.279,41.29]
[1673856573132,209.19386823,23.39,23.278,5.4490731]
[1673856573343,191.68857847,23.388,23.278,46.54820968]
[1673856573539,190.58737057,23.386,23.278,46.54820968]
[1673856573748,192.75285153,23.384,23.279,56.75487184]
[1673856573968,196.1524759,23.382,23.279,23.92159871]
[1673856574179,20.0,23.381,23.28,28.46747839]
[1673856574384,210.12736373,23.38,23.28,49.49539316]
[1673856574589,103.80966201,23.247,23.219,185.38748414]
[1673856574798,17.0,23.38,23.223,30.0]
[1673856574799,30.08937172,23.276,23.223,30.0]
[1673856575012,30.08937172,23.276,23.191,72.15503489]
[1673856575445,30.08937172,23.276,23.213,27.06052222]
[1673856575773,193.34922214,23.364,23.215,17.04746397]
[1673856575981,45.89619407,23.344,23.278,30.08937172]
[1673856576169,66.70497603,23.344,23.277,18.35021698]
[1673856576380,319.98367488,23.343,23.277,18.35021698]
[1673856576694,112.77,23.29,23.18,90.12]
[1673856576907,51.13790921,23.273,23.18,90.36]
[1673856577115,44.48812619,23.273,23.14,97.2103161]
[1673856577332,65.65870905,23.272,23.215,17.184298]
[1673856577653,17.0,23.272,23.215,17.184298]
[1673856578059,44.48812619,23.273,23.215,17.184298]
[1673856578265,44.48812619,23.273,23.2,111.28336809]
[1673856578491,22.0022323,23.177,23.14,97.2103161]
[1673856578806,41.49035849,23.273,23.249,22.0022323]
[1673856579021,25.89757592,23.177,23.142,72.77231087]
[1673856579234,146.63424316,23.391,23.141,102.68857969]
[1673856579235,193.92156548,23.359,23.25,81.15195239]
[1673856579451,246.49398344,23.357,23.251,17.0]
[1673856579631,30.41402125,23.355,23.251,17.0]
[1673856579848,30.41402125,23.355,23.252,80.59240711]
[1673856580060,30.41402125,23.355,23.253,17.0]
[1673856580258,438.16608365,23.4,23.253,17.0]
[1673856580259,191.00278742,23.363,23.254,20.0]
[1673856580476,191.00278742,23.363,23.256,71.52111724]
[1673856580689,190.44056848,23.391,23.258,71.80794647]
[1673856580910,190.44056848,23.391,23.259,47.0]
[1673856581106,190.44056848,23.391,23.259,118.4625813]
[1673856581326,198.79101821,23.396,23.261,71.17332977]
[1673856581547,190.44056848,23.391,23.263,71.20560685]
[1673856581854,198.79101821,23.396,23.38,354.01]
[1673856582067,121.88504687,23.44,23.38,354.01]
[1673856582381,87.99044474,23.41,23.393,2.03208]
[1673856582577,14.98093537,23.418,23.392,2.03208]
[1673856582794,56.02762921,23.417,23.41,28.00271314]
[1673856583205,32.47762921,23.417,23.411,71.82510802]
[1673856583413,197.72038258,23.475,23.417,166.06812301]
[1673856583623,438.16608365,23.506,23.417,166.06812301]
[1673856583624,198.21621953,23.474,23.43,23.61]
[1673856583845,194.43201416,23.495,23.41,17.057833]
[1673856584059,17.050067,23.456,23.41,17.057833]
[1673856584269,17.050067,23.456,23.44,23.56]
[1673856584478,17.050067,23.456,23.44,62.26449653]
[1673856584695,17.050067,23.456,23.42,23.48]
[1673856585346,17.050067,23.456,23.421,17.0]
[1673856585749,32.51968162,23.455,23.421,44.69815028]
[1673856585961,20.0,23.454,23.421,44.69815028]
[1673856586186,20.0,23.454,23.4,94.54]
[1673856586187,20.0,23.454,23.4,87.14629657]
[1673856586497,193.45999356,23.455,23.4,228.90629657]
[1673856586696,193.45999356,23.455,23.4,130.14567237]
[1673856586905,214.74912296,23.456,23.401,25.86829823]
[1673856587117,20.0,23.455,23.4,94.54]
[1673856587325,192.65742383,23.454,23.401,24.55191823]
[1673856587543,210.95945191,23.453,23.4,94.54]
[1673856587751,20.0,23.452,23.4,94.54]
[1673856587954,20.0,23.455,23.4,94.54]
[1673856588279,50.46702528,23.452,23.309,186.96347847]
[1673856588491,20.0,23.451,23.31,71.55839844]
[1673856588801,20.0,23.451,23.42,23.61]
[1673856589026,17.050067,23.456,23.42,23.61]
[1673856589027,20.0,23.455,23.42,23.61]
[1673856589207,20.0,23.455,23.39,17.07907]
[1673856589426,17.050067,23.456,23.42,23.61]
[1673856589941,193.45999356,23.455,23.42,23.54]
[1673856590158,52.52239192,23.455,23.42,94.49]
[1673856590379,36.45038054,23.459,23.44,47.18]
[1673856590590,36.45038054,23.459,23.4,377.74]
[1673856590796,62.36370727,23.459,23.45,23.61]
[1673856591003,197.03659182,23.464,23.44,23.61]
[1673856591209,197.25445983,23.479,23.44,23.52]
[1673856591426,193.45863581,23.489,23.45,23.61]
[1673856591638,193.45863581,23.489,23.44,23.52]
[1673856592064,194.43137424,23.495,23.42,94.54]
[1673856592372,138.59330273,23.496,23.42,94.54]
[1673856592373,194.5339427,23.487,23.42,94.54]
[1673856592695,103.0098641,23.496,23.4,23.69]
[1673856592696,192.67909184,23.485,23.4,23.69]
[1673856592888,191.43248321,23.483,23.4,23.69]
[1673856593100,194.39252724,23.469,23.41,23.61]
[1673856593315,192.36405379,23.467,23.42,23.52]
[1673856593526,20.0,23.468,23.411,28.97559768]
[1673856593527,190.42061632,23.459,23.411,28.97559768]
[1673856593735,23.61,23.45,23.4,23.69]
[1673856593947,20.0,23.449,23.4,94.58]
[1673856594165,20.0,23.449,23.4,23.52]
[1673856594364,20.0,23.449,23.4,94.45]
[1673856594570,36.93513058,23.449,23.4,23.52]
[1673856594781,41.46196354,23.448,23.4,23.52]
[1673856594991,41.46196354,23.448,23.399,34.42948489]
[1673856595204,38.46196354,23.447,23.38,94.79]
[1673856595424,20.0,23.446,23.38,94.79]
[1673856595628,37.0,23.446,23.381,24.97476294]
[1673856595831,69.95940647,23.445,23.39,23.54]
[1673856596038,23.46,23.44,23.381,18.98685501]
[1673856596252,20.0,23.439,23.39,30.16031061]
[1673856596479,23.46,23.43,23.39,30.16031061]
[1673856596688,20.0,23.429,23.37,20.63]
[1673856596910,20.0,23.429,23.376,27.92948489]
[1673856597214,63.21436827,23.439,23.376,27.92948489]
[1673856597429,63.21436827,23.439,23.36,20.56]
[1673856597612,0.15692534,23.439,23.36,20.56]
[1673856598040,21.46196354,23.438,23.35,20.76]
[1673856598357,20.62,23.4,23.348,134.9808]
[1673856598578,20.62,23.4,23.353,20.0]
[1673856598775,41.46196354,23.399,23.353,20.0]
[1673856598987,20.62,23.4,23.353,20.0]
[1673856599325,32.43809402,23.351,23.348,20.0]
[1673856599627,32.43809402,23.351,23.35,34.94421789]
[1673856600453,32.43809402,23.351,23.344,39.00615929]
[1673856600667,32.43809402,23.351,23.318,19.84711803]
[1673856600886,32.43809402,23.351,23.321,35.88298729]
[1673856601209,32.43809402,23.351,23.319,31.89838568]
[1673856601394,194.78579422,23.398,23.319,31.89838568]
[1673856601613,197.63223049,23.396,23.319,31.89838568]
[1673856601929,58.46196354,23.395,23.361,3.99e-06]
[1673856602132,41.34001197,23.33,23.32,202.29348057]
[1673856602342,0.05999601,23.359,23.32,364.98966676]
[1673856602552,0.05999601,23.359,23.319,26.97843148]
[1673856602763,0.05999601,23.359,23.33,20.76]
[1673856603206,0.05999601,23.359,23.331,111.49076454]
[1673856603412,0.05999601,23.359,23.32,34.84522713]
[1673856603605,0.05999601,23.359,23.323,20.0]
[1673856603815,21.52195955,23.359,23.323,20.0]
[1673856604025,0.05999601,23.359,23.323,20.0]
[1673856604441,85.0817145,23.366,23.324,29.26519944]
[1673856604657,21.46196354,23.382,23.324,29.26519944]
[1673856604887,109.78991045,23.359,23.281,72.86272802]
[1673856605091,45.39258857,23.359,23.281,72.86272802]
[1673856605305,139.43857716,23.358,23.318,20.97134544]
[1673856605502,160.9005407,23.358,23.28,0.24280867]
[1673856605704,20.0,23.357,23.28,0.24280867]
[1673856605919,41.24745354,23.357,23.28,0.24280867]
[1673856606132,125.41910238,23.357,23.28,0.24280867]
[1673856606367,27.64579324,23.356,23.28,0.24280867]
[1673856606582,27.43128324,23.356,23.281,22.68734544]
[1673856606786,62.04071831,23.356,23.261,72.32881985]
[1673856606996,62.04071831,23.356,23.279,23.78861616]
[1673856607216,56.86585164,23.356,23.33,20.74]
[1673856607417,69.4099208,23.318,23.31,20.76]
[1673856607627,69.4099208,23.318,23.29,20.76]
[1673856607628,69.1954108,23.318,23.29,20.76]
[1673856607847,60.39807299,23.318,23.29,20.76]
[1673856608066,118.6402716,23.318,23.3,20.63]
[1673856608257,60.39807299,23.318,23.31,20.67]
[1673856608576,27.02226035,23.318,23.31,20.76]
[1673856608784,27.02226035,23.318,23.311,27.44272231]
[1673856609210,27.02226035,23.318,23.311,26.69547965]
[1673856609425,27.02226035,23.318,23.312,17.0]
[1673856609632,27.02226035,23.318,23.31,20.76]
[1673856610053,27.02226035,23.318,23.311,31.80987123]
[1673856610477,27.02226035,23.318,23.31,85.45]
[1673856610897,20.76,23.38,23.31,85.45]
[1673856610898,20.75,23.39,23.31,85.45]
[1673856611224,52.56631491,23.371,23.35,20.76]
[1673856611410,52.56631491,23.371,23.33,20.61]
[1673856611621,52.56631491,23.371,23.34,20.76]
[1673856611936,19.14726745,23.378,23.32,82.96]
[1673856612252,0.32581535,23.37,23.35,20.76]
[1673856612461,0.32581535,23.37,23.36,20.76]
[1673856612668,0.32581535,23.37,23.36,104.08]
[1673856613103,0.32581535,23.37,23.361,17.0]
[1673856613741,20.7,23.44,23.361,17.0]
[1673856613945,21.46196354,23.439,23.39,20.76]
[1673856614152,21.46196354,23.439,23.38,83.04]
[1673856614153,21.46196354,23.439,23.4,20.61]
[1673856614362,53.04515974,23.439,23.4,20.61]
[1673856614573,51.26750182,23.439,23.41,20.67]
[1673856614781,28.52672286,23.438,23.42,20.76]
[1673856615003,51.15769515,23.438,23.42,20.76]
[1673856615196,28.52672286,23.438,23.42,20.76]
[1673856615407,27.55952286,23.438,23.43,20.76]
[1673856615720,2.55952286,23.438,23.431,20.0]
[1673856615930,20.75,23.52,23.432,17.0]
[1673856616364,24.18356291,23.495,23.432,17.0]
[1673856616575,46.02714394,23.495,23.46,20.76]
[1673856616784,18.5834562,23.505,23.47,10.7345237]
[1673856616989,19.67042191,23.494,23.48,20.75]
[1673856617320,191.1477069,23.546,23.481,20.0]
[1673856617321,20.71,23.54,23.481,20.0]
[1673856617509,191.1477069,23.546,23.49,20.67]
[1673856617725,191.1477069,23.546,23.491,20.0]
[1673856617932,20.6,23.56,23.491,20.0]
[1673856618140,78.0098641,23.496,23.491,20.0]
[1673856618561,12.83,23.58,23.491,20.0]
[1673856618760,12.84,23.6,23.492,17.0]
[1673856618982,12.84,23.6,23.5,64.15]
[1673856619204,12.84,23.6,23.501,17.0]
[1673856619418,490.182253,23.603,23.501,17.0]
[1673856619728,72.45312477,23.532,23.501,38.46196354]
[1673856619943,72.45312477,23.532,23.52,64.15]
[1673856620144,72.45312477,23.532,23.52,192.28]
[1673856620463,490.182253,23.603,23.521,17.0]
[1673856620670,195.97282191,23.621,23.57,12.82]
[1673856620879,15.99348296,23.608,23.54,128.3]
[1673856621099,15.99348296,23.608,23.57,12.83]
[1673856621407,42.88583938,23.607,23.571,20.0]
[1673856621605,17.0394872,23.631,23.54,188.4475]
[1673856621808,17.0394872,23.631,23.42,21.16366492]
[1673856621809,40.0,23.571,23.479,71.61328661]
[1673856622021,14.30963605,23.606,23.5,12.83]
[1673856622233,72.94494859,23.57,23.5,12.83]
[1673856622457,24.44566753,23.606,23.56,12.83]
[1673856622655,44.31709624,23.569,23.54,12.86]
[1673856622871,12.83,23.554,23.52,12.96]
[1673856623080,30.83355024,23.568,23.52,12.96]
[1673856623404,32.35281691,23.553,23.521,17.0]
[1673856623624,32.35281691,23.553,23.52,12.96]
[1673856623811,32.35281691,23.553,23.5,51.41]
[1673856623812,39.28314957,23.552,23.5,12.83]
[1673856624023,43.25881997,23.552,23.48,12.81]
[1673856624240,43.25881997,23.552,23.48,51.22]
[1673856624450,31.35724753,23.567,23.48,51.22]
[1673856624669,12.83,23.58,23.48,12.81]
[1673856624670,74.33843939,23.551,23.48,12.81]
[1673856624980,74.33843939,23.551,23.46,12.82]
[1673856624981,12.83,23.54,23.46,12.82]
[1673856625408,115.67411685,23.539,23.46,12.82]
[1673856625592,20.0,23.463,23.46,12.82]
[1673856625802,17.0,23.462,23.451,26.24420885]
[1673856626017,12.82,23.46,23.42,12.78]
[1673856626229,12.82,23.459,23.42,12.82]
[1673856626449,12.82,23.459,23.45,12.75]
[1673856626646,12.82,23.459,23.42,51.31]
[1673856626647,50.08490219,23.459,23.42,51.31]
[1673856626859,50.08490219,23.459,23.43,12.33]
[1673856627071,50.08490219,23.459,23.42,51.31]
[1673856627072,20.0,23.463,23.45,12.78]
[1673856627290,33.53515019,23.458,23.45,12.78]
[1673856627501,20.0,23.463,23.45,12.78]
[1673856628133,20.0,23.482,23.45,12.78]
[1673856628451,25.94783019,23.481,23.46,12.88]
[1673856628872,48.35994514,23.48,23.46,12.88]
[1673856629081,25.89409685,23.481,23.46,12.88]
[1673856629407,20.0,23.482,23.47,12.87]
[1673856630030,20.0,23.482,23.47,2.97]
[1673856630222,20.0,23.482,23.46,12.88]
[1673856630640,20.0,23.482,23.45,12.88]
[1673856631068,28.32943019,23.481,23.45,12.88]
[1673856631296,20.0,23.482,23.45,12.88]
[1673856631498,54.49084074,23.481,23.45,12.88]
[1673856631699,52.18637407,23.481,23.45,12.88]
[1673856631906,33.18276352,23.48,23.45,12.88]
[1673856632120,33.18276352,23.48,23.44,12.9]
[1673856632553,55.65304074,23.479,23.44,12.9]
[1673856632964,53.23474594,23.482,23.44,12.9]
[1673856632965,29.82154358,23.478,23.44,12.9]
[1673856633168,21.46196354,23.478,23.44,12.9]
[1673856633379,32.46661025,23.478,23.44,12.9]
[1673856633589,87.54618668,23.477,23.44,12.9]
[1673856633809,37.82807928,23.477,23.45,12.88]
[1673856634018,88.49246535,23.477,23.45,12.88]
[1673856634234,81.64112811,23.476,23.45,12.88]
[1673856634428,121.32387405,23.476,23.44,12.9]
[1673856634640,96.90659745,23.475,23.44,12.9]
[1673856634850,93.29993468,23.475,23.44,12.9]
[1673856635078,49.24513352,23.474,23.44,12.9]
[1673856635264,49.24513352,23.474,23.45,12.88]
[1673856635478,49.24513352,23.474,23.4,206.25]
[1673856635479,52.10513352,23.474,23.413,94.3113]
[1673856635689,25.79208204,23.473,23.45,12.86]
[1673856635904,66.85889465,23.473,23.45,12.86]
[1673856636123,59.4052407,23.472,23.42,113.53]
[1673856636316,41.06681261,23.473,23.46,12.88]
[1673856636527,51.53884936,23.476,23.45,12.88]
[1673856636737,51.53884936,23.476,23.451,20.0]
[1673856636966,28.4362953,23.475,23.451,20.0]
[1673856637166,47.53388736,23.478,23.44,3.56]
[1673856637377,47.53388736,23.478,23.42,128.85]
[1673856637582,20.0,23.482,23.42,128.85]
[1673856637788,26.99034863,23.477,23.42,51.58]
[1673856638223,26.99034863,23.477,23.413,76.68576953]
[1673856638433,17.0,23.476,23.413,76.68576953]
[1673856638861,20.0,23.435,23.413,51.24576953]
[1673856639073,20.0,23.435,23.42,193.1]
[1673856639270,20.0,23.482,23.437,20.0]
[1673856639473,20.0,23.482,23.439,19.94625138]
[1673856640009,20.0,23.482,23.421,5.55625138]
[1673856640410,30.92386263,23.481,23.43,28.89203547]
[1673856640841,20.0,23.482,23.423,40.81314472]
[1673856641054,20.0,23.482,23.431,16.52513398]
[1673856641277,20.0,23.482,23.432,20.0]
[1673856641689,20.0,23.482,23.423,35.11274893]
[1673856641907,79.87210492,23.481,23.387,46.5207]
[1673856642107,79.87210492,23.481,23.38,0.24718566]
[1673856642435,188.31475865,23.48,23.387,16.52513398]
[1673856642740,215.14792226,23.479,23.38,0.24718566]
[1673856642961,17.0,23.478,23.41,12.88]
[1673856643169,122.6,23.477,23.4,12.8]
[1673856643358,12.8,23.47,23.4,12.8]
[1673856643563,20.0,23.469,23.39,12.88]
[1673856643780,12.8,23.45,23.38,13.09718566]
[1673856643996,12.78,23.44,23.38,0.24718566]
[1673856644211,12.88,23.43,23.38,0.24718566]
[1673856644426,12.88,23.42,23.38,0.24718566]
[1673856644646,20.0,23.419,23.38,0.24718566]
[1673856644842,12.84,23.41,23.38,0.24718566]
[1673856645051,12.88,23.4,23.38,0.24718566]
[1673856645271,12.88,23.4,23.32,51.62]
[1673856645272,0.74155698,23.379,23.32,12.97]
[1673856645484,3.64332,23.378,23.32,16.69011]
[1673856645696,81.52227416,23.378,23.33,12.88]
[1673856645908,36.82051199,23.378,23.321,100.9302661]
[1673856646126,20.0,23.365,23.322,3.71979]
[1673856646329,17.0,23.364,23.322,3.71979]
[1673856646550,20.0,23.365,23.322,3.71979]
[1673856646746,29.34056265,23.37,23.322,3.71979]
[1673856646962,17.0,23.369,23.322,3.71979]
[1673856647166,29.74436496,23.364,23.322,3.71979]
[1673856647365,17.0,23.363,23.322,3.71979]